bitfinex-derivatives/quotes_BTCF0:USTF0_20240923
["timestamp","ask_amount","ask_price","bid_price","bid_amount"]
[1727054102756,0.03027482,63793.0,63792.0,0.078375]
[1727054103152,0.03027482,63793.0,63792.0,1.148655]
[1727054103354,0.12519708,63802.0,63794.0,0.078373]
[1727054103553,0.00774298,63805.0,63801.0,0.3608]
[1727054103758,0.12519708,63808.0,63805.0,0.078359]
[1727054103968,0.078357,63807.0,63805.0,0.078359]
[1727054104164,0.078357,63807.0,63806.0,0.078358]
[1727054104356,0.00776416,63807.0,63806.0,0.078358]
[1727054104666,0.12519708,63809.0,63806.0,0.078358]
[1727054105163,0.00789356,63809.0,63808.0,0.078356]
[1727054105368,0.12519708,63810.0,63808.0,0.078356]
[1727054105571,0.00235206,63813.0,63808.0,0.078356]
[1727054105572,0.12517508,63809.0,63808.0,0.078356]
[1727054105758,0.12517508,63810.0,63801.0,0.3608]
[1727054105955,0.00235206,63813.0,63812.0,0.078351]
[1727054107166,0.00235206,63813.0,63812.0,0.079351]
[1727054107668,0.3608,63827.0,63820.0,0.078341]
[1727054108160,0.3608,63827.0,63818.0,0.3608]
[1727054108471,2.20222,63835.0,63818.0,0.3608]
[1727054108472,0.078327,63832.0,63830.0,0.078329]
[1727054108766,0.15142,63835.0,63826.0,0.3608]
[1727054108767,0.36300188,63835.0,63826.0,0.3608]
[1727054109064,0.19,63827.0,63818.0,0.3608]
[1727054109262,0.53288188,63835.0,63818.0,0.3608]
[1727054109263,0.19,63819.0,63818.0,0.3608]
[1727054109474,0.19,63819.0,63818.0,0.001]
[1727054109860,0.19,63819.0,63809.0,0.3608]
[1727054110062,0.19,63811.0,63809.0,0.439153]
[1727054110773,0.19,63811.0,63810.0,0.078353]
[1727054110981,0.19,63811.0,63809.0,0.3608]
[1727054111267,0.21198848,63811.0,63802.0,0.3608]
[1727054111472,0.19,63805.0,63802.0,0.3608]
[1727054112062,0.1492,63810.0,63802.0,0.3608]
[1727054112262,0.51365176,63818.0,63812.0,0.07835]
[1727054113273,0.51365176,63818.0,63808.0,0.3608]
[1727054113576,0.078345,63817.0,63808.0,0.439155]
[1727054113761,0.19,63816.0,63808.0,0.439155]
[1727054113964,0.268346,63816.0,63808.0,0.439155]
[1727054114170,0.078349,63814.0,63808.0,0.439155]
[1727054114475,0.07835,63813.0,63808.0,0.3608]
[1727054114880,0.19,63816.0,63808.0,0.3608]
[1727054115169,0.19381515,63815.0,63809.0,0.078354]
[1727054115372,0.06864007,63814.0,63809.0,0.078354]
[1727054115669,0.06864007,63813.0,63809.0,0.078354]
[1727054115870,0.06864007,63812.0,63809.0,0.078354]
[1727054116072,0.078345,63817.0,63810.0,0.078353]
[1727054116073,0.03026808,63811.0,63810.0,0.078353]
[1727054116273,0.12848684,63818.0,63810.0,0.19]
[1727054116576,0.12848684,63818.0,63817.0,0.439145]
[1727054116577,0.00235176,63818.0,63817.0,0.439145]
[1727054118066,0.00235176,63818.0,63817.0,1.509225]
[1727054118473,0.00235176,63818.0,63817.0,0.439145]
[1727054119075,0.00235176,63818.0,63817.0,0.442145]
[1727054119575,0.00235176,63818.0,63817.0,0.443145]
[1727054119777,0.00235176,63818.0,63817.0,0.004]
[1727054119971,0.078351,63813.0,63809.0,0.078353]
[1727054120170,0.19,63811.0,63809.0,0.078353]
[1727054120780,0.19,63811.0,63810.0,0.078353]
[1727054121078,0.1874879,63816.0,63810.0,0.078353]
[1727054121270,0.1091409,63815.0,63810.0,0.078353]
[1727054121469,0.1091409,63814.0,63810.0,0.078353]
[1727054122276,0.29778,63817.0,63812.0,0.078351]
[1727054122476,0.003,63815.0,63814.0,0.3608]
[1727054122867,0.003,63815.0,63814.0,0.439148]
[1727054123069,0.6577,63827.0,63817.0,0.078345]
[1727054123070,0.10021837,63822.0,63817.0,0.078345]
[1727054123378,0.07834,63821.0,63817.0,0.078345]
[1727054123677,0.00772193,63822.0,63814.0,0.3608]
[1727054123875,0.078336,63824.0,63814.0,0.3608]
[1727054124175,0.39754258,63827.0,63814.0,0.3608]
[1727054124381,0.078334,63826.0,63821.0,0.078339]
[1727054125673,0.078334,63826.0,63822.0,0.078338]
[1727054125868,0.004,63826.0,63820.0,0.3608]
[1727054126079,0.004,63826.0,63825.0,0.078335]
[1727054126785,0.004,63826.0,63821.0,0.078339]
[1727054126967,0.004,63826.0,63825.0,0.078335]
[1727054127382,0.399014,63842.0,63825.0,1.07004]
[1727054127577,0.399894,63842.0,63838.0,0.078318]
[1727054128581,0.32158,63842.0,63839.0,0.078318]
[1727054128785,0.00635093,63840.0,63839.0,0.078318]
[1727054129476,0.00635093,63840.0,63838.0,0.001]
[1727054129781,0.02155691,63850.0,63838.0,0.001]
[1727054129975,0.078295,63858.0,63845.0,0.3608]
[1727054130371,0.0212391,63858.0,63856.0,0.078297]
[1727054130576,0.547286,63865.0,63857.0,0.078295]
[1727054130879,0.5686492,63865.0,63857.0,0.078295]
[1727054131275,0.078294,63858.0,63845.0,0.3608]
[1727054131478,0.19,63859.0,63845.0,0.3608]
[1727054131975,0.49924527,63865.0,63851.0,0.3608]
[1727054131976,0.3608,63864.0,63851.0,0.3608]
[1727054132176,0.02936527,63865.0,63861.0,0.07829]
[1727054132377,0.00088,63870.0,63857.0,0.3618]
[1727054132582,0.00234992,63871.0,63868.0,0.078282]
[1727054132880,0.00234992,63871.0,63864.0,0.3608]
[1727054132881,0.00088,63876.0,63875.0,0.078273]
[1727054133072,0.3608,63882.0,63875.0,0.078273]
[1727054133274,0.3608,63882.0,63876.0,0.078272]
[1727054133472,0.3608,63882.0,63870.0,0.3608]
[1727054133473,0.00802715,63883.0,63879.0,0.078268]
[1727054133677,0.21166149,63888.0,63878.0,0.3608]
[1727054133678,0.078259,63887.0,63878.0,0.3608]
[1727054134184,0.08617956,63887.0,63876.0,0.078272]
[1727054134386,0.078261,63886.0,63876.0,0.078272]
[1727054134585,0.00792056,63887.0,63870.0,0.3608]
[1727054134771,0.19,63878.0,63872.0,0.078277]
[1727054135177,0.00787353,63883.0,63880.0,0.078267]
[1727054135376,0.268259,63888.0,63880.0,0.078267]
[1727054135582,0.3608,63885.0,63880.0,0.078267]
[1727054135780,0.268259,63888.0,63870.0,0.001]
[1727054135781,0.5508,63881.0,63870.0,0.001]
[1727054135989,0.19,63871.0,63870.0,0.001]
[1727054136173,0.19,63871.0,63850.0,0.3608]
[1727054136375,0.19,63857.0,63850.0,0.3608]
[1727054137176,0.3608,63851.0,63834.0,0.3608]
[1727054137374,0.19,63840.0,63834.0,0.3608]
[1727054137580,0.20101047,63837.0,63834.0,0.3608]
[1727054137792,0.17283312,63836.0,63835.0,0.078323]
[1727054138285,0.17283312,63836.0,63834.0,0.3608]
[1727054138484,0.17283312,63835.0,63834.0,0.439124]
[1727054138875,0.17283312,63835.0,63826.0,0.3608]
[1727054139079,0.17283312,63834.0,63826.0,0.3608]
[1727054139275,0.14258329,63833.0,63826.0,0.3608]
[1727054139481,0.14258329,63832.0,63831.0,0.078327]
[1727054140486,0.14258329,63832.0,63827.0,0.3608]
[1727054140487,0.25886206,63832.0,63827.0,0.3608]
[1727054140788,0.25886206,63832.0,63831.0,0.005]
[1727054140789,0.078326,63832.0,63831.0,0.005]
[1727054141091,0.14261924,63832.0,63831.0,0.005]
[1727054142387,0.14261924,63832.0,63831.0,0.001]
[1727054142896,0.14261924,63832.0,63829.0,0.07833]
[1727054143080,0.14261924,63831.0,63829.0,0.07833]
[1727054143396,0.14261924,63830.0,63829.0,0.07833]
[1727054143979,0.14261924,63830.0,63827.0,0.3608]
[1727054144182,0.14261924,63829.0,63827.0,0.10999042]
[1727054144488,0.14261924,63828.0,63827.0,0.10999042]
[1727054144892,0.14261924,63828.0,63824.0,0.078336]
[1727054145100,0.20101047,63826.0,63824.0,0.078336]
[1727054146200,0.07833,63829.0,63824.0,0.078336]
[1727054146384,0.2507755,63829.0,63824.0,0.078336]
[1727054146780,0.078331,63828.0,63824.0,0.078336]
[1727054146993,0.078331,63828.0,63803.0,0.06136457]
[1727054146994,0.078336,63824.0,63803.0,0.06136457]
[1727054147197,0.3608,63825.0,63802.0,0.3608]
[1727054147198,0.3608,63819.0,63802.0,0.3608]
[1727054147494,0.078347,63815.0,63805.0,0.078359]
[1727054147684,0.078348,63814.0,63805.0,0.078359]
[1727054147891,0.2507935,63814.0,63802.0,0.3608]
[1727054148194,1.509269,63814.0,63795.0,0.24978456]
[1727054148393,1.509269,63814.0,63794.0,0.3616]
[1727054148394,0.439163,63802.0,63794.0,0.3616]
[1727054148598,0.439163,63802.0,63794.0,0.439173]
[1727054148800,0.6116085,63802.0,63794.0,0.439173]
[1727054149291,0.6116085,63802.0,63795.0,0.014]
[1727054149688,0.5332455,63802.0,63795.0,0.014]
[1727054149893,0.19,63800.0,63794.0,0.3728]
[1727054150301,0.1724455,63800.0,63794.0,0.3728]
[1727054150499,0.1724455,63800.0,63795.0,0.004]
[1727054151996,0.078368,63798.0,63795.0,0.004]
[1727054152302,0.07837,63796.0,63795.0,0.004]
[1727054152596,0.5332455,63796.0,63782.0,0.00235134]
[1727054152786,0.19,63786.0,63782.0,0.00235134]
[1727054152987,0.3608,63789.0,63782.0,0.00235134]
[1727054153183,0.5332455,63789.0,63783.0,0.078386]
[1727054153887,0.078382,63787.0,63782.0,0.00235134]
[1727054154099,0.078382,63787.0,63782.0,0.01635134]
[1727054154286,0.1724455,63787.0,63782.0,0.01635134]
[1727054154798,0.1724455,63787.0,63783.0,0.078386]
[1727054154997,0.1724455,63787.0,63785.0,0.078383]
[1727054155598,0.3608,63789.0,63788.0,0.07838]
[1727054155797,0.078361,63804.0,63788.0,0.66032]
[1727054156003,0.5508,63808.0,63788.0,0.66032]
[1727054156004,0.5332455,63802.0,63797.0,0.078369]
[1727054156389,0.19,63798.0,63788.0,0.07838]
[1727054156592,0.078374,63794.0,63785.0,0.004]
[1727054156988,0.2508195,63794.0,63788.0,0.009]
[1727054157189,0.1724455,63794.0,63788.0,0.009]
[1727054157597,0.1724455,63794.0,63782.0,0.00235134]
[1727054157794,0.078377,63791.0,63788.0,0.078379]
[1727054158193,0.2508225,63791.0,63788.0,0.078379]
[1727054158904,0.2508225,63791.0,63789.0,0.078379]
[1727054159399,0.3608,63796.0,63782.0,0.00235134]
[1727054159611,0.078374,63793.0,63782.0,0.00235134]
[1727054159792,0.078374,63793.0,63788.0,0.079379]
[1727054159992,0.36168,63796.0,63788.0,0.079379]
[1727054160205,0.19,63793.0,63788.0,0.078379]
[1727054160397,0.5332455,63796.0,63789.0,0.078379]
[1727054160398,0.5342455,63796.0,63789.0,0.078379]
[1727054160597,0.5332455,63796.0,63786.0,0.3608]
[1727054160991,0.5332455,63796.0,63795.0,0.078372]
[1727054161207,0.1724455,63796.0,63795.0,0.078372]
[1727054161401,0.38229311,63802.0,63788.0,0.191]
[1727054161607,0.5332455,63802.0,63793.0,0.19]
[1727054161899,0.5332455,63802.0,63792.0,0.3608]
[1727054161900,0.5332455,63802.0,63801.0,0.078364]
[1727054162100,0.3608,63802.0,63801.0,0.078364]
[1727054162695,0.078351,63813.0,63801.0,1.0702]
[1727054162896,0.3608,63820.0,63804.0,0.19]
[1727054163204,0.08069871,63815.0,63806.0,0.3608]
[1727054163599,0.08069871,63815.0,63814.0,0.078348]
[1727054164011,0.078343,63819.0,63806.0,0.3608]
[1727054164210,0.19,63818.0,63806.0,0.3608]
[1727054164503,0.078347,63815.0,63812.0,0.078351]
[1727054164694,0.078351,63812.0,63807.0,0.078356]
[1727054164897,0.62915,63813.0,63808.0,0.078355]
[1727054165100,0.7232455,63813.0,63808.0,0.078355]
[1727054165299,0.078352,63811.0,63808.0,0.078355]
[1727054165608,0.3618,63813.0,63812.0,0.078351]
[1727054165799,0.3608,63813.0,63812.0,0.078351]
[1727054166698,0.078351,63812.0,63808.0,0.078356]
[1727054166902,0.1724455,63812.0,63807.0,0.078357]
[1727054167207,0.078363,63802.0,63793.0,0.3608]
[1727054167410,0.3608,63801.0,63793.0,0.3608]
[1727054167803,0.078368,63798.0,63794.0,0.078373]
[1727054168319,0.2508135,63798.0,63794.0,0.078373]
[1727054168697,0.19,63797.0,63793.0,0.3608]
[1727054169001,0.078371,63796.0,63793.0,0.439173]
[1727054169201,0.078371,63796.0,63793.0,0.3608]
[1727054169506,0.078371,63796.0,63783.0,0.08227419]
[1727054169507,0.3608,63794.0,63787.0,0.06136457]
[1727054169698,0.19,63788.0,63783.0,0.0054]
[1727054169895,0.5508,63788.0,63783.0,0.0054]
[1727054170106,0.078385,63784.0,63783.0,0.0054]
[1727054170507,0.2508305,63784.0,63783.0,0.0054]
[1727054171707,0.1724455,63784.0,63783.0,0.0054]
[1727054171907,0.5508,63788.0,63783.0,0.0054]
[1727054171908,0.3608,63788.0,63786.0,0.078383]
[1727054172296,0.3608,63788.0,63786.0,0.13974757]
[1727054172297,0.3058997,63788.0,63786.0,0.13974757]
[1727054172503,0.3608,63794.0,63786.0,0.06136457]
[1727054173000,0.3608,63794.0,63783.0,0.0114]
[1727054173001,0.3608,63794.0,63789.0,0.078379]
[1727054173209,0.5332455,63794.0,63789.0,0.13974357]
[1727054173509,0.5332455,63794.0,63789.0,0.078379]
[1727054173816,0.268376,63792.0,63786.0,0.014]
[1727054173999,0.3608,63794.0,63786.0,0.014]
[1727054174311,0.3608,63801.0,63790.0,0.06136457]
[1727054174511,0.5332455,63801.0,63797.0,0.078369]
[1727054174812,0.49403373,63801.0,63797.0,0.078369]
[1727054175509,0.19,63798.0,63793.0,0.06136457]
[1727054175718,0.5508,63794.0,63790.0,0.06136457]
[1727054176008,0.5508,63794.0,63791.0,0.078376]
[1727054176212,0.5508,63794.0,63792.0,0.06136457]
[1727054176401,0.5508,63794.0,63793.0,0.06136457]
[1727054176804,0.7232455,63794.0,63793.0,0.06136457]
[1727054177905,0.7232455,63794.0,63792.0,0.06736457]
[1727054178110,0.078374,63793.0,63792.0,0.006]
[1727054178304,0.078378,63790.0,63789.0,0.06136457]
[1727054178607,0.078379,63789.0,63788.0,0.06136457]
[1727054178807,0.078385,63784.0,63783.0,0.0054]
[1727054179200,0.2508305,63784.0,63783.0,0.0054]
[1727054179400,0.2508305,63784.0,63776.0,0.00235184]
[1727054179401,1.5111905,63784.0,63776.0,0.00235184]
[1727054179608,0.5508,63778.0,63776.0,0.00235184]
[1727054179913,0.5508,63778.0,63774.0,0.07687419]
[1727054179914,0.078394,63777.0,63774.0,0.07687419]
[1727054180224,0.7241255,63778.0,63772.0,0.07687419]
[1727054180400,0.0784,63772.0,63770.0,0.07687419]
[1727054180604,0.3608,63771.0,63767.0,0.07687419]
[1727054180903,0.078409,63765.0,63762.0,0.07687419]
[1727054181314,0.2508545,63765.0,63760.0,0.07687419]
[1727054182304,0.439201,63771.0,63761.0,0.19059987]
[1727054182511,0.6116465,63771.0,63763.0,0.15528419]
[1727054182712,0.2508465,63771.0,63764.0,0.15528419]
[1727054183111,0.1724455,63771.0,63767.0,0.078405]
[1727054183415,0.1724455,63771.0,63757.0,0.3608]
[1727054183416,0.079275,63777.0,63766.0,0.07687419]
[1727054183613,0.1724455,63777.0,63767.0,0.07687419]
[1727054183806,0.19,63773.0,63766.0,0.07687419]
[1727054184001,0.001,63771.0,63766.0,0.07687419]
[1727054184801,0.001,63771.0,63769.0,0.078403]
[1727054185021,0.001,63771.0,63770.0,0.15527619]
[1727054185315,0.00235291,63785.0,63770.0,1.18364695]
[1727054185517,0.00235291,63785.0,63783.0,0.078386]
[1727054186916,0.00235291,63785.0,63778.0,0.3608]
[1727054186917,0.00235291,63785.0,63784.0,0.078385]
[1727054187426,0.36479841,63785.0,63777.0,0.07637113]
[1727054187619,0.19,63779.0,63776.0,0.078395]
[1727054187920,0.17479841,63785.0,63776.0,0.07637113]
[1727054188117,0.17479841,63785.0,63764.0,0.55013999]
[1727054188118,0.19,63778.0,63775.0,0.07637113]
[1727054188324,0.19,63778.0,63773.0,0.078398]
[1727054188325,0.30753696,63778.0,63773.0,0.07637113]
[1727054188520,0.30753696,63778.0,63775.0,0.078395]
[1727054188721,0.30753696,63778.0,63774.0,0.07637113]
[1727054189107,0.30753696,63778.0,63773.0,0.15476913]
[1727054189308,0.19,63783.0,63775.0,0.005]
[1727054189514,0.1724455,63783.0,63775.0,0.005]
[1727054189826,0.02436303,63785.0,63784.0,0.078385]
[1727054189827,0.00235291,63785.0,63784.0,0.078385]
[1727054190012,0.17479841,63785.0,63784.0,0.078385]
[1727054190212,0.00235291,63785.0,63784.0,0.439185]
[1727054192324,0.00235291,63785.0,63784.0,0.443185]
[1727054192525,0.078372,63795.0,63784.0,1.43512]
[1727054192713,0.19,63797.0,63796.0,0.07837]
[1727054192909,0.1724455,63797.0,63796.0,0.07837]
[1727054193221,0.3624455,63797.0,63787.0,0.07637113]
[1727054193422,0.3624455,63797.0,63786.0,0.07637113]
[1727054193625,0.1619,63803.0,63802.0,0.078363]
[1727054193817,0.00235194,63810.0,63808.0,0.078354]
[1727054194121,0.17479744,63810.0,63802.0,0.3608]
[1727054194316,0.17479744,63810.0,63807.0,0.078357]
[1727054194512,0.17479744,63810.0,63802.0,0.3608]
[1727054194822,0.19,63809.0,63801.0,0.078363]
[1727054195340,0.078375,63793.0,63788.0,0.3608]
[1727054195666,0.19,63790.0,63780.0,0.07637113]
[1727054195810,0.19,63790.0,63776.0,0.45244664]
[1727054195811,0.268384,63785.0,63778.0,0.07637113]
[1727054196131,0.68,63792.0,63776.0,0.3616]
[1727054196132,0.19,63779.0,63776.0,0.3608]
[1727054196924,0.268391,63779.0,63776.0,0.3608]
[1727054197123,0.078394,63777.0,63769.0,0.07637113]
[1727054197319,0.19,63779.0,63765.0,0.07637113]
[1727054197320,0.268397,63774.0,63765.0,0.07637113]
[1727054197913,0.268397,63774.0,63764.0,0.07637113]
[1727054197914,0.078397,63774.0,63764.0,0.07637113]
[1727054198114,0.19,63767.0,63763.0,0.3616]
[1727054198322,0.29,63764.0,63763.0,0.3608]
[1727054198716,0.67728,63773.0,63763.0,0.3608]
[1727054198917,0.5191,63773.0,63767.0,0.078406]
[1727054199325,0.29,63771.0,63764.0,0.014]
[1727054199712,0.29,63771.0,63763.0,0.3608]
[1727054200029,0.078405,63768.0,63763.0,0.3748]
[1727054200619,0.51998,63773.0,63763.0,0.014]
[1727054200825,0.5191,63773.0,63763.0,0.014]
[1727054201025,0.5191,63773.0,63763.0,0.3748]
[1727054201026,0.3608,63773.0,63763.0,0.3748]
[1727054201913,0.3608,63773.0,63764.0,0.014]
[1727054202127,0.6508,63773.0,63764.0,0.014]
[1727054202329,0.078404,63769.0,63764.0,0.014]
[1727054202513,0.29,63767.0,63763.0,0.014]
[1727054202745,0.6508,63767.0,63763.0,0.014]
[1727054202928,0.07841,63764.0,63763.0,0.014]
[1727054204226,0.07841,63764.0,63752.0,0.3608]
[1727054204530,0.07841,63764.0,63757.0,0.078418]
[1727054204731,0.07841,63764.0,63763.0,0.014]
[1727054205528,0.1558,63766.0,63752.0,0.014]
[1727054205727,0.368417,63758.0,63752.0,0.014]
[1727054206034,0.3608,63753.0,63750.0,0.01832576]
[1727054206336,0.3608,63753.0,63738.0,0.02142402]
[1727054206337,0.29,63752.0,63738.0,0.02142402]
[1727054206628,0.29,63743.0,63737.0,0.3608]
[1727054206834,0.078437,63742.0,63737.0,0.3608]
[1727054207019,0.29,63743.0,63729.0,0.078452]
[1727054207221,0.29,63735.0,63729.0,0.078452]
[1727054207631,0.29,63735.0,63727.0,0.3608]
[1727054207834,0.6508,63740.0,63727.0,0.3608]
[1727054208334,0.6508,63740.0,63732.0,0.078449]
[1727054208826,0.29,63735.0,63727.0,0.439255]
[1727054209025,0.29,63729.0,63727.0,0.453255]
[1727054209227,0.29,63729.0,63727.0,0.3748]
[1727054209426,0.439254,63728.0,63727.0,0.014]
[1727054209637,0.910014,63728.0,63727.0,0.014]
[1727054209819,0.439254,63728.0,63727.0,0.014]
[1727054210344,0.910014,63728.0,63727.0,0.014]
[1727054210726,0.078455,63727.0,63717.0,0.3608]
[1727054211036,0.078458,63725.0,63717.0,0.3608]
[1727054211330,0.078458,63725.0,63709.0,0.45852276]
[1727054211331,0.36846,63723.0,63709.0,0.45852276]
[1727054211529,0.36846,63723.0,63709.0,0.439277]
[1727054211725,0.29,63723.0,63712.0,0.078473]
[1727054211928,0.1629,63727.0,63712.0,0.078473]
[1727054212125,0.001,63725.0,63717.0,0.014]
[1727054212434,0.29,63722.0,63717.0,0.014]
[1727054212665,0.8316,63721.0,63709.0,0.014]
[1727054212932,0.3608,63710.0,63709.0,0.014]
[1727054213937,0.439276,63710.0,63709.0,0.014]
[1727054214136,0.3608,63710.0,63709.0,0.014]
[1727054214336,0.3608,63710.0,63696.0,0.0458186]
[1727054214632,0.3608,63710.0,63700.0,0.078487]
[1727054215027,0.3618,63710.0,63709.0,0.014]
[1727054215224,0.730276,63710.0,63709.0,0.014]
[1727054215423,0.73695609,63710.0,63696.0,0.078493]
[1727054215636,0.73795609,63710.0,63701.0,0.3748]
[1727054216039,0.65948009,63710.0,63701.0,0.3748]
[1727054216532,0.29,63702.0,63701.0,0.3748]
[1727054216728,0.078482,63705.0,63701.0,0.3748]
[1727054216932,0.29,63702.0,63701.0,0.3748]
[1727054217138,0.2350242,63702.0,63701.0,0.3748]
[1727054217727,0.2350242,63702.0,63701.0,0.3608]
[1727054217927,0.29,63707.0,63701.0,0.3608]
[1727054218132,0.078485,63703.0,63701.0,0.3608]
[1727054218335,0.191,63702.0,63701.0,0.3748]
[1727054218536,0.191,63702.0,63701.0,0.014]
[1727054219440,0.13602249,63702.0,63701.0,0.014]
[1727054219830,0.09675206,63702.0,63701.0,0.014]
[1727054220634,0.001,63702.0,63701.0,0.092487]
[1727054220936,0.19,63709.0,63701.0,0.014]
[1727054221138,0.3608,63710.0,63701.0,0.014]
[1727054221338,0.19,63719.0,63708.0,0.3608]
[1727054221639,0.00235545,63723.0,63718.0,0.078466]
[1727054221838,0.00235545,63723.0,63720.0,0.078463]
[1727054222139,0.00235545,63723.0,63714.0,0.3608]
[1727054222643,0.00235545,63723.0,63722.0,0.078461]
[1727054222945,0.00235545,63723.0,63722.0,0.439261]
[1727054223340,0.00235545,63723.0,63717.0,0.078467]
[1727054223541,0.00235545,63723.0,63714.0,0.3608]
[1727054224043,0.08081545,63723.0,63719.0,0.078465]
[1727054224246,0.00235545,63723.0,63719.0,0.078465]
[1727054224634,0.00235545,63723.0,63720.0,0.3608]
[1727054224835,0.00235545,63723.0,63722.0,0.078461]
[1727054225945,0.02362951,63723.0,63722.0,0.078461]
[1727054226441,0.02362951,63723.0,63722.0,0.003]
[1727054226648,0.02127406,63723.0,63722.0,0.003]
[1727054226843,0.268459,63724.0,63722.0,0.003]
[1727054228647,0.19,63724.0,63723.0,0.07846]
[1727054228948,0.078455,63727.0,63726.0,0.078456]
[1727054229645,0.38218966,63734.0,63723.0,0.0458186]
[1727054229837,0.00235432,63744.0,63728.0,0.4066186]
[1727054230038,0.00235432,63744.0,63743.0,0.078436]
[1727054230238,0.07843,63748.0,63742.0,0.3608]
[1727054230543,0.19,63753.0,63748.0,0.078429]
[1727054230743,0.19,63753.0,63742.0,0.3608]
[1727054230744,0.078425,63752.0,63749.0,0.3608]
[1727054230960,0.078425,63752.0,63751.0,0.078426]
[1727054231143,0.078419,63757.0,63754.0,0.078422]
[1727054231363,0.078419,63757.0,63755.0,0.078421]
[1727054232240,0.19,63759.0,63757.0,0.078418]
[1727054232544,0.078412,63762.0,63757.0,0.078418]
[1727054232746,0.00235371,63765.0,63759.0,0.0458186]
[1727054232947,0.00235371,63765.0,63755.0,0.3608]
[1727054232948,0.00235371,63765.0,63764.0,0.0458186]
[1727054233548,0.00235371,63765.0,63763.0,0.078411]
[1727054233549,0.078398,63774.0,63766.0,0.078406]
[1727054233939,0.078398,63774.0,63766.0,0.12423268]
[1727054234135,0.19,63775.0,63766.0,0.078406]
[1727054234649,0.21182507,63775.0,63766.0,0.078406]
[1727054234845,0.078393,63778.0,63766.0,0.04582668]
[1727054235147,0.19,63768.0,63766.0,0.04582668]
[1727054235447,0.19,63768.0,63753.0,0.09164664]
[1727054235448,0.83128,63767.0,63754.0,0.04582668]
[1727054235652,0.19,63755.0,63750.0,0.04582668]
[1727054235845,0.268421,63755.0,63749.0,0.3608]
[1727054236043,0.19,63755.0,63750.0,0.078427]
[1727054236542,0.19,63755.0,63753.0,0.078423]
[1727054236747,0.268417,63759.0,63753.0,0.078423]
[1727054236956,0.19,63764.0,63755.0,0.3608]
[1727054237137,0.19,63764.0,63759.0,0.078415]
[1727054237342,0.078413,63762.0,63755.0,0.3608]
[1727054237655,0.19,63758.0,63755.0,0.3608]
[1727054238841,0.19,63758.0,63755.0,0.3658]
[1727054239044,0.19,63758.0,63755.0,0.444221]
[1727054239243,0.19,63763.0,63755.0,0.439221]
[1727054239845,0.19,63763.0,63755.0,0.443221]
[1727054240245,0.02166203,63766.0,63755.0,0.3648]
[1727054240448,0.19,63774.0,63765.0,0.3608]
[1727054240955,0.00802044,63773.0,63765.0,0.3608]
[1727054241660,0.02198869,63772.0,63765.0,0.3608]
[1727054242152,0.02198869,63772.0,63767.0,0.078405]
[1727054242355,0.02198869,63772.0,63765.0,0.001]
[1727054242356,0.19,63768.0,63765.0,0.001]
[1727054242843,0.19,63768.0,63755.0,0.38298924]
[1727054243156,0.00435353,63771.0,63755.0,0.38298924]
[1727054243157,0.00435353,63771.0,63763.0,0.3608]
[1727054243358,0.00435353,63771.0,63770.0,0.078402]
[1727054244557,0.00235353,63771.0,63770.0,0.078402]
[1727054245157,0.00435353,63771.0,63770.0,0.079402]
[1727054246351,0.3608,63798.0,63770.0,0.079402]
[1727054246352,0.078383,63786.0,63783.0,0.078385]
[1727054246659,0.078383,63786.0,63784.0,0.078385]
[1727054247150,0.078383,63786.0,63785.0,0.078384]
[1727054247743,0.22000045,63791.0,63770.0,0.001]
[1727054247949,0.22000045,63791.0,63769.0,0.36315222]
[1727054247950,0.19,63775.0,63769.0,0.36315222]
[1727054248148,0.078398,63774.0,63772.0,0.0784]
[1727054248858,0.19,63775.0,63769.0,0.44155522]
[1727054249047,0.078401,63772.0,63769.0,0.44155522]
[1727054249652,0.02154855,63774.0,63769.0,0.36315222]
[1727054249853,0.19,63775.0,63769.0,0.36315222]
[1727054250454,0.078393,63778.0,63774.0,0.078397]
[1727054251061,0.17823375,63782.0,63777.0,0.3608]
[1727054251259,0.02173375,63782.0,63781.0,0.078389]
[1727054251560,0.19,63785.0,63781.0,0.078389]
[1727054251764,0.268384,63785.0,63781.0,0.078389]
[1727054252057,0.078386,63784.0,63781.0,0.078389]
[1727054252446,0.21211069,63785.0,63777.0,0.3608]
[1727054252667,0.21211069,63785.0,63781.0,0.003]
[1727054252958,0.21211069,63785.0,63784.0,0.078385]
[1727054252959,0.19,63785.0,63784.0,0.078385]
[1727054253153,0.00766353,63788.0,63783.0,0.3608]
[1727054253460,0.02197996,63791.0,63790.0,0.078378]
[1727054253661,0.37080368,63792.0,63790.0,0.078378]
[1727054254260,0.0023527,63792.0,63791.0,0.078377]
[1727054254861,0.078365,63801.0,63789.0,0.3608]
[1727054255161,0.19,63802.0,63789.0,0.3608]
[1727054255762,0.21126532,63802.0,63789.0,0.3608]
[1727054255957,0.28962932,63802.0,63789.0,0.3608]
[1727054256650,0.28962932,63802.0,63798.0,0.078367]
[1727054256851,0.3608,63806.0,63796.0,0.3608]
[1727054257060,0.078355,63809.0,63806.0,0.078358]
[1727054257258,0.10061168,63809.0,63806.0,0.078358]
[1727054257456,0.10061168,63809.0,63804.0,0.3608]
[1727054257457,0.02225668,63809.0,63804.0,0.3608]
[1727054257665,0.078357,63807.0,63804.0,0.3608]
[1727054258366,0.21205623,63812.0,63806.0,0.078358]
[1727054259155,0.078356,63808.0,63806.0,0.078358]
[1727054259357,0.19,63807.0,63804.0,0.001]
[1727054259556,0.3608,63805.0,63796.0,0.3608]
[1727054259762,0.19,63797.0,63796.0,0.3608]
[1727054259969,0.13510863,63797.0,63796.0,0.3608]
[1727054260166,0.078375,63793.0,63791.0,0.00235137]